Cogmind - Beta 16 @@@ ROGUE MODE // 2025.12.28 @ 12:12:43 Player: cxt100s Result: Destroyed by P-70 Sage with High-powered Shock Rifle Performance ------------- Evolutions (6) 3000 Regions Visited (21) 4200 Robots Destroyed (182) 910 Value Destroyed (10182) 10182 Prototype IDs (29) 580 Alien Tech Used (0) 0 Bonus (9092) 9092 TOTAL SCORE: 27964 Bonus ------- High Alert Combat Kills 542 Follower Combat Kills 2379 Entered Garrisons 1400 Used RIF Installer 4500 Aligned with FarCom 300 Friendly Fire -29 Cogmind --------- Core Integrity 0/1150 Matter 89/300 Energy 4/100 System Corruption 15% Temperature Cool (0) Movement Core (1400) Ox27 Location -4/Factory Parts ------- > --- POWER (2) -------- (None) > --- PROPULSION (5) --- (None) > --- UTILITY (9) ------ Huge Storage Unit Relay Coupler [Sentry] (31) > --- WEAPON (3) ------- Compact Ion Cannon > --- INVENTORY (25) --- Light Antimatter Reactor Huge Storage Unit Superbattery (1500) Improved Transmission Jammer Advanced Point Defense System Relay Coupler [NC] (45) Relay Coupler [NC] (46) Relay Coupler [Sentry] (41) Plasma Rifle Improved EM Pulse Cannon Compact Ion Cannon Autogun Railgun Long-range Missile Launcher Advanced Remote Datajack Plasma Cutter Power Maul Peak State ------------ > --- POWER ------------ Antimatter Reactor Light Antimatter Reactor > --- PROPULSION ------- Armored Medium Treads Heavy Treads Heavy Treads > --- UTILITY ---------- Advanced Cryofiber Web Advanced Heat Sink Huge Storage Unit Improved Particle Charger Improved Heavy Armor Plating Relay Coupler [NC] Relay Coupler [C] Relay Coupler [Sentry] > --- WEAPON ----------- Compact Ion Cannon Matter Neutralizer Advanced Remote Datajack > --- INVENTORY -------- Reinforced Fission Core Light Antimatter Reactor Improved Treads Armored Medium Treads Advanced Cooling System Huge Storage Unit Superbattery Improved Transmission Jammer Advanced Point Defense System Relay Coupler [NC] Relay Coupler [NC] Relay Coupler [Sentry] Relay Coupler [Sentry] Tesla Rifle Improved EM Pulse Cannon Compact Ion Cannon Compact Ion Cannon Compact Ion Cannon Railgun Railgun Railgun Long-range Missile Launcher Advanced Remote Datajack Plasma Cutter Power Maul [Rating: 119] Favorites ----------- Power Improved Deuterium Engine Engine Improved Deuterium Engine Power Core Neutrino Core Reactor Antimatter Reactor Propulsion Light Treads Treads Light Treads Leg Flexi-carbon Leg Utility Huge Storage Unit Device Advanced Heat Sink Storage Huge Storage Unit Processor Targeting Computer Hackware Relay Coupler [NC] Protection Improved Medium Armor Plating Weapon Compact Ion Cannon Energy Gun Quantum Rifle Energy Cannon Compact Ion Cannon Ballistic Gun Assault Rifle Launcher Rocket Launcher Special Weapon Remote Datajack Impact Weapon Power Maul Special Melee Weapon Datajack Build | -11 -10 -10 -10 -9 -8 -8 -7 -7 -7 -7 -6 -6 -5 -5 -5 -5 -5 -5 -4 -4 -4 ------- Run | Yrd Mat Min Exi Min Mat Gar Fac Gar Fac Gar Fac Gar Fac Was Fac Gar Fac Gar Fac Gar Fac Slots Evolved 12 | . . . . . 4 . 2 . . . 2 . 2 . . . . . 2 . . Power 1 | . . . . . . . . . . . . . . . . . . . 1 . . Propulsion 3 | . . . . . 1 . . . . . 1 . 1 . . . . . . . . Utility 7 | . . . . . 3 . 2 . . . . . 1 . . . . . 1 . . Weapon 1 | . . . . . . . . . . . 1 . . . . . . . . . . Parts Attached 167 | 3 7 2 . 1 28 8 8 8 18 3 6 2 15 5 . 8 5 3 12 10 15 Power 25 | . 3 . . . 4 1 . 1 2 . 1 . 1 2 . 1 1 . 2 2 4 Engine 12 | . 3 . . . 3 1 . 1 2 . 1 . 1 . . . . . . . . Core 8 | . . . . . 1 . . . . . . . . 1 . 1 1 . 1 . 3 Reactor 5 | . . . . . . . . . . . . . . 1 . . . . 1 2 1 Propulsion 37 | 2 1 . . . 7 2 1 4 5 1 1 . 3 2 . 2 1 . 2 . 3 Treads 36 | 2 1 . . . 7 2 1 4 5 1 1 . 3 2 . 2 1 . 2 . 2 Leg 1 | . . . . . . . . . . . . . . . . . . . . . 1 Wheel . | . . . . . . . . . . . . . . . . . . . . . . Hover . | . . . . . . . . . . . . . . . . . . . . . . Flight . | . . . . . . . . . . . . . . . . . . . . . . Utility 65 | 1 1 1 . 1 11 4 6 3 5 1 2 2 6 . . 4 2 2 8 3 2 Device 28 | 1 . 1 . . 3 4 . 2 2 . . 1 4 . . . . 1 5 3 1 Storage 4 | . 1 . . . 1 . . . . . . . . . . 1 . . 1 . . Processor 2 | . . . . . . . . . . . . . . . . 1 . . 1 . . Hackware 8 | . . . . . . . 1 1 1 1 1 1 . . . 1 . 1 . . . Protection 23 | . . . . 1 7 . 5 . 2 . 1 . 2 . . 1 2 . 1 . 1 Artifact . | . . . . . . . . . . . . . . . . . . . . . . Weapon 40 | . 2 1 . . 6 1 1 . 6 1 2 . 5 1 . 1 1 1 . 5 6 Energy Gun 4 | . . 1 . . 1 . . . 1 . . . . . . . . . . . 1 Energy Cannon 14 | . 1 . . . 3 . . . . . 1 . 2 1 . 1 . 1 . 2 2 Ballistic Gun 7 | . . . . . 2 . . . 1 . . . 2 . . . . . . 1 1 Ballistic Cannon . | . . . . . . . . . . . . . . . . . . . . . . Launcher 3 | . . . . . . 1 . . . . . . . . . . 1 . . . 1 Special Weapon 10 | . 1 . . . . . . . 3 1 1 . 1 . . . . . . 2 1 Impact Weapon 1 | . . . . . . . . . 1 . . . . . . . . . . . . Slashing Weapon . | . . . . . . . . . . . . . . . . . . . . . . Piercing Weapon . | . . . . . . . . . . . . . . . . . . . . . . Special Melee Weapon 1 | . . . . . . . 1 . . . . . . . . . . . . . . Unidentified Prototypes 1 | . . . . . . . . . . . . . 1 . . . . . . . . Corrupted Parts 1 | . . . . . . . . . . 1 . . . . . . . . . . . System Corruption 12 | . . . . . . . . . . 12 . . . . . . . . . . . Parts Lost 59 | . . 1 . . 7 3 . . 2 . 2 1 3 . . 5 1 1 3 2 28 Power 12 | . . . . . 1 1 . . 1 . . . 2 . . . 1 . . . 6 Propulsion 17 | . . . . . 4 . . . . . 2 1 . . . 2 . . 2 . 6 Utility 16 | . . . . . 1 2 . . . . . . . . . 2 . 1 1 . 9 Weapon 14 | . . 1 . . 1 . . . 1 . . . 1 . . 1 . . . 2 7 Highest Loss Streak 7 | . . 1 . . 4 1 . . 1 . 1 1 1 . . 5 1 1 1 2 7 To Critical Strikes 1 | . . . . . . . . . . . . . . . . . . . . . 1 Average Backups 22 | 6 14 18 19 18 22 24 24 24 24 24 24 23 24 22 22 21 23 22 23 24 21 Power 1 | 1 1 1 1 1 1 . 1 1 . 1 1 2 . 1 2 1 1 1 . . 1 Propulsion 3 | 4 2 4 4 4 5 3 4 5 5 5 4 2 3 3 3 2 2 3 2 1 1 Utility 7 | . 2 3 4 3 4 9 8 9 10 8 8 8 7 6 6 7 8 7 10 10 8 Weapon 8 | 1 8 9 9 9 10 10 10 8 6 8 7 8 9 9 8 7 7 7 7 9 8 Tool/Special . | . . . . . . . . . . . . . . . . . . . . . . Unused Backups 66 | . 8 1 . . 12 2 9 4 2 . . 1 6 4 . . . 2 1 3 11 Power 5 | . 2 . . . . . 1 . 1 . . . . . . . . . . . 1 Propulsion 7 | . . . . . 3 . . . . . . . . 4 . . . . . . . Utility 19 | . 3 . . . 3 . . 1 . . . 1 2 . . . . 1 . 2 6 Weapon 32 | . 3 1 . . 6 2 8 3 1 . . . 4 . . . . 1 . . 3 Tool/Special 3 | . . . . . . . . . . . . . . . . . . . 1 1 1 Average Slot Usage (%) 94 | . 99 100 100 100 97 98 98 99 100 99 99 100 96 88 88 82 87 87 88 83 65 Engine 5 | . 14 14 14 14 8 4 7 7 7 7 6 6 4 1 . . . . . . . Core 1 | . . . . . . 3 . . . . . . . . 5 5 4 5 5 3 1 Treads 22 | . 27 28 28 28 27 27 22 23 23 23 25 26 25 17 17 15 17 17 14 15 10 Device 14 | . 14 14 14 . 8 20 24 23 20 17 12 6 10 11 11 11 11 13 14 14 12 Storage 7 | . 14 14 14 14 9 9 7 7 7 7 6 6 5 5 5 5 5 5 5 5 5 Hackware 12 | . . . . . . . 6 14 17 23 20 26 23 23 23 18 17 13 15 15 10 Protection 7 | . . . . 14 24 13 12 7 7 4 6 6 5 5 5 3 8 11 9 5 3 Energy Gun 3 | . 5 14 14 14 2 . . . 5 4 4 1 1 . . . . . . . . Energy Cannon 11 | . 7 9 14 14 8 17 14 14 6 6 12 13 12 11 17 16 16 14 14 11 9 Ballistic Gun 2 | . 14 4 . . 6 . . . . . . . 1 . . . . . . . 1 Special Weapon 1 | . . . . . . . . . 1 2 1 4 . 4 . . . 1 . 3 2 Peak Build Rating 119 | 7 9 9 10 10 27 31 38 51 58 52 57 60 81 91 88 88 91 92 105 117 119 Average Rating 56 | 6 8 8 9 10 23 29 35 47 55 49 55 54 73 87 88 82 87 90 101 111 89 On Entrance 52 | 6 7 9 9 10 10 24 30 37 51 51 48 53 60 77 88 88 84 91 91 105 117 Avg Prop Armor Cover (%) . | . . . . . . . . . . . . . . . . . . . . . . Naked Turns . | . . . . . . . . . . . . . . . . . . . . . . Heaviest Build 151 | 13 51 51 51 53 116 112 117 116 129 129 137 118 121 123 123 123 124 131 150 151 148 Greatest Support 168 | 40 40 40 40 40 60 60 60 76 84 68 88 80 133 168 168 168 167 167 167 167 167 Greatest Overweight (x) 36 | . 1 1 1 1 1 1 1 1 1 2 1 1 1 . . . . . 1 . 36 Average Overweight (x) . | . . 1 1 1 . 1 1 1 1 1 1 1 . . . . . . . . 1 Largest Inventory Capacity 25 | 8 20 20 20 20 25 25 25 25 25 25 25 25 25 25 25 25 25 25 25 25 25 Average Capacity 23 | 8 18 20 20 20 22 25 25 25 25 25 25 25 25 25 25 25 25 25 25 25 25 Most Carried 25 | 6 20 19 20 20 25 25 25 25 25 25 25 25 25 25 25 25 25 25 25 25 25 Average Carried 22 | 5 15 18 19 18 22 24 24 24 24 24 24 23 24 24 25 24 24 24 24 24 21 Final Capacity 25 | 8 20 20 20 20 25 25 25 25 25 25 25 25 25 25 25 25 25 25 25 25 25 Final Carried 25 | 3 19 19 20 18 23 25 25 25 25 25 25 25 25 25 25 25 25 25 25 25 17 Class Distribution -------------------- 24% | Bothacker-Mutant 23% | Botlord-Tank 16% | Mutant 9% | Bothacker-Tank 9% | Scavenger-Mutant 8% | Bothacker-Skirmisher 6% | Botlord-Skirmisher Dominant Class ---------------- Mutant | -10/Materials Mutant | -10/Mines Mutant | -10/Exiles Mutant | -9/Mines Scavenger-Mutant | -8/Materials Bothacker-Mutant | -8/Garrison Bothacker-Mutant | -7/Factory Bothacker-Mutant | -7/Garrison Bothacker-Mutant | -7/Factory Bothacker-Mutant | -7/Garrison Botlord-Skirmisher | -6/Factory Bothacker-Skirmisher | -6/Garrison Bothacker-Tank | -5/Factory Bothacker-Tank | -5/Waste Bothacker-Tank | -5/Factory Botlord-Tank | -5/Garrison Botlord-Tank | -5/Factory Botlord-Tank | -5/Garrison Botlord-Tank | -4/Factory Botlord-Tank | -4/Garrison Botlord-Tank | -4/Factory Resources | -11 -10 -10 -10 -9 -8 -8 -7 -7 -7 -7 -6 -6 -5 -5 -5 -5 -5 -5 -4 -4 -4 ----------- Run | Yrd Mat Min Exi Min Mat Gar Fac Gar Fac Gar Fac Gar Fac Was Fac Gar Fac Gar Fac Gar Fac Matter Collected 4750 | 242 237 99 . 10 560 228 104 141 579 119 362 136 348 77 30 72 149 277 209 359 412 Remotely . | . . . . . . . . . . . . . . . . . . . . . . Salvage Created 9309 | 16 785 242 . . 832 522 247 58 621 138 557 9 834 791 . 652 510 377 597 355 1166 Parts 387 | 2 53 23 . . 30 20 18 3 28 7 27 . 25 14 . 26 17 16 21 15 42 Haulers Intercepted 4 | . 2 . . . 2 . . . . . . . . . . . . . . . . Recyclers Shooed 10 | . 1 . . . . . 1 . 1 . 3 . 1 . . . 1 . . . 2 Parts Field Recycled . | . . . . . . . . . . . . . . . . . . . . . . Retrieved Matter . | . . . . . . . . . . . . . . . . . . . . . . Parts Self-Destructed . | . . . . . . . . . . . . . . . . . . . . . . Prevented . | . . . . . . . . . . . . . . . . . . . . . . Parts Restored . | . . . . . . . . . . . . . . . . . . . . . . Kills | -11 -10 -10 -10 -9 -8 -8 -7 -7 -7 -7 -6 -6 -5 -5 -5 -5 -5 -5 -4 -4 -4 ------- Run | Yrd Mat Min Exi Min Mat Gar Fac Gar Fac Gar Fac Gar Fac Was Fac Gar Fac Gar Fac Gar Fac Combat Hostiles Destroyed 144 | . 15 6 . . 13 12 4 1 11 4 11 1 9 3 . 13 8 6 10 4 13 Melee 1 | . . . . . . . . . . 1 . . . . . . . . . . . Guns 34 | . 12 5 . . 8 . . . 3 1 . . 1 . . . . . . . 4 Cannons 93 | . 3 1 . . 4 10 4 . 8 2 9 1 8 1 . 12 7 3 9 4 7 AOE 5 | . . . . . . 2 . . . . 2 . . . . . . . . . 1 Classes Destroyed 18 | 1 7 . . . 3 . 1 . 2 . . 1 . 1 . 1 . . . . 1 Worker 7 | . 1 . . . . . . . . . 3 . . . . . . . . . 3 Builder 7 | . 2 . . . . . . . 2 . 1 . . . . . 1 . . . 1 Tunneler 7 | 1 2 3 . . . . . . . . . . . . . . . . . . 1 Hauler 4 | . 2 . . . 2 . . . . . . . . . . . . . . . . Recycler 5 | . 1 . . . . . . . . . . . 2 . . . . . . . 2 Mechanic 1 | . . . . . . . . . . . . . . . . . . . . . 1 Operator 1 | . . . . . . . . . 1 . . . . . . . . . . . . Watcher 5 | . 2 . . . 1 . 1 . 1 . . . . . . . . . . . . Swarmer 20 | . 6 3 . . . . . . 3 1 2 . . . . 3 . . . . 2 Cutter 2 | . . . . . . . . . . . . . . . . 2 . . . . . Grunt 47 | . 9 3 . . 7 10 1 . 1 1 5 . . . . 1 2 2 . 4 1 Brawler 6 | . . . . . 1 . . . 2 . . . 1 . . 2 . . . . . Duelist 5 | . . . . . . . . . 1 . 1 . . . . . . . 3 . . Sentry 15 | . . . . . 4 2 1 . . . . . 3 . . 1 3 . . . 1 Hunter 15 | . . . . . 1 . 1 . . . 2 . . . . 1 1 3 . 1 5 Programmer 30 | . . . . . . . 1 1 4 2 1 . 5 . . 3 2 . 7 . 4 Behemoth 2 | . . . . . . . . . . . . 1 . . . . . 1 . . . Compactor 3 | . . . . . . . . . . . . . . 3 . . . . . . . Best Kill Streak 7 | 1 3 3 . . 5 5 1 1 3 3 5 1 2 1 . 6 3 2 3 2 7 Combat Bots Only 6 | . 3 3 . . 5 5 1 1 3 3 3 1 2 1 . 6 2 2 3 2 3 Max Kills in Single Turn 3 | 1 1 1 . . 1 2 1 1 1 1 3 1 1 1 . 1 1 1 1 1 3 Gunslinging . | . . . . . . . . . . . . . . . . . . . . . . Exploded 2 | . . . . . . 1 . . . . 2 . . . . . . . . . 1 Melee 1 | . . . . . . . . . . 1 . . . . . . . . . . . Uniques/NPCs Destroyed . | . . . . . . . . . . . . . . . . . . . . . . Combat | -11 -10 -10 -10 -9 -8 -8 -7 -7 -7 -7 -6 -6 -5 -5 -5 -5 -5 -5 -4 -4 -4 -------- Run | Yrd Mat Min Exi Min Mat Gar Fac Gar Fac Gar Fac Gar Fac Was Fac Gar Fac Gar Fac Gar Fac Hostile Shots Fired 1328 | . 55 45 . . 150 35 26 21 59 89 74 11 53 . . 133 26 18 83 33 417 Missed 360 | . 24 7 . . 34 10 12 6 10 28 25 3 10 . . 24 6 2 20 10 129 Hits 968 | . 31 38 . . 116 25 14 15 49 61 49 8 43 . . 109 20 16 63 23 288 Melee 20 | . . . . . 12 . . . 1 . . . . . . 1 . . 6 . . Projectile 948 | . 31 38 . . 104 25 14 15 48 61 49 8 43 . . 108 20 16 57 23 288 AOE 3 | . . . . . . . . . . . . . . . . 3 . . . . . Critical Strikes 44 | . . . . . 3 2 . 3 2 4 . . 3 . . 3 1 . 3 2 18 Part Disruptions 1 | . . . . . . . . . . 1 . . . . . . . . . . . Damage Taken 16823 | . 332 363 . . 1957 414 203 299 881 620 539 105 927 . . 2162 508 340 1275 655 5243 Core 2244 | . 37 118 . . 299 31 37 63 54 99 66 19 18 . . 175 45 18 51 68 1046 Absorbed by Shields 199 | . . . . . . . . . . 199 . . . . . . . . . . . Reduced by Siege Mode 227 | . . . . . . . . . . . . . . . . 175 . . 32 20 . Ignored by Resistances 229 | . . . . . 43 . . . . 122 64 . . . . . . . . . . Regen/Repaired (Parts) 445 | . 84 . . . . . . . 118 . . . . 100 . 143 . . . . . Core Remaining (%) 67 | 100 . . . 38 . 40 . . . 63 . 90 . . . . . 74 . . . Volleys Fired 673 | 4 60 25 . . 69 37 13 17 47 24 39 16 45 54 . 37 22 33 29 30 72 Largest 3 | 2 2 2 . . 2 2 2 2 2 2 3 3 3 2 . 3 3 3 3 3 3 Hottest 285 | 70 100 110 . . 150 150 150 150 169 169 234 234 245 180 . 270 270 270 270 270 285 Shots Fired 1343 | 8 118 50 . . 138 59 25 28 78 34 76 24 108 102 . 105 62 61 76 49 142 Gun 395 | 8 98 43 . . 93 . . . 39 12 17 10 27 . . . 1 1 . . 46 Cannon 857 | . 19 7 . . 45 54 25 28 31 11 45 9 75 96 . 105 60 52 73 38 84 Launcher 18 | . . . . . . 5 . . 2 . 5 . . . . . 1 1 . . 4 Special 73 | . 1 . . . . . . . 6 11 9 5 6 6 . . . 7 3 11 8 Kinetic 213 | 4 59 18 . . 70 . . . 4 . . . 14 . . . 1 1 . . 42 Thermal 1036 | 4 59 32 . . 68 54 25 28 66 23 62 19 88 96 . 105 60 52 73 38 84 Explosive 18 | . . . . . . 5 . . 2 . 5 . . . . . 1 1 . . 4 Electromagnetic 4 | . . . . . . . . . . . . . . . . . . . . . 4 Robot Hit Streak 26 | 2 14 11 . . 13 16 17 7 7 4 9 9 18 26 . 12 10 13 10 10 8 Robot Miss Streak 9 | 3 8 9 . . 3 2 1 1 4 2 2 2 2 2 . 3 2 2 3 2 5 Penetration Max 1 | . . . . . . . . . . . . . 1 . . . . . . . 1 Secondary Targets 4 | . 1 . . . 2 . . . 1 . . . . . . . . . . . . Max Gunslinging Chain 1 | . 1 . . . 1 . . . 1 . . . . . . . . . . . . Shots Hit Robots 837 | 4 68 28 . . 97 32 20 17 36 22 49 14 76 88 . 60 40 31 49 28 78 Core Hits 315 | 1 36 12 . . 34 22 8 2 19 4 30 2 26 9 . 19 13 8 14 11 45 Critical Kills 10 | . . . . . . . . . . . . . . 2 . 1 1 3 1 . 2 Critical Parts Destroyed . | . . . . . . . . . . . . . . . . . . . . . . Critical Strikes 18 | . 3 1 . . 3 . . . . . . . . 2 . 1 1 3 1 . 3 Burn 7 | . 3 1 . . 3 . . . . . . . . . . . . . . . . Meltdown 9 | . . . . . . . . . . . . . . 2 . 1 1 3 1 . 1 Destroy 1 | . . . . . . . . . . . . . . . . . . . . . 1 Corrupt 1 | . . . . . . . . . . . . . . . . . . . . . 1 Melee Attacks 5 | . . . . . . . 1 . 1 . . . . . . 3 . . . . . Impact 4 | . . . . . . . . . 1 . . . . . . 3 . . . . . Slashing . | . . . . . . . . . . . . . . . . . . . . . . Piercing . | . . . . . . . . . . . . . . . . . . . . . . Sneak Attacks 1 | . . . . . . . 1 . . . . . . . . . . . . . . Combat Hostiles . | . . . . . . . . . . . . . . . . . . . . . . Follow-up Attacks . | . . . . . . . . . . . . . . . . . . . . . . Damage Inflicted 22907 | 50 963 381 . . 1632 1203 481 527 1000 408 1499 286 2020 2451 . 1950 1276 744 1904 748 3384 Guns 4573 | 50 748 324 . . 977 . . . 410 190 313 121 598 . . . . 23 . . 819 Cannons 16391 | . 210 52 . . 627 800 481 527 517 199 769 165 1422 2451 . 1950 1184 721 1904 748 1664 Explosions 1796 | . . . . . . 403 . . 48 . 410 . . . . . 35 . . . 900 Melee . | . . . . . . . . . . . . . . . . . . . . . . Ramming 147 | . 5 5 . . 28 . . . 25 19 7 . . . . . 57 . . . 1 Kinetic 2389 | 25 386 147 . . 788 . . . 42 . . . 268 . . . . 23 . . 710 Thermal 18608 | 25 572 229 . . 816 800 481 527 885 389 1082 286 1752 2451 . 1950 1184 721 1904 748 1806 Explosive 1654 | . . . . . . 403 . . 48 . 410 . . . . . 35 . . . 758 Electromagnetic 109 | . . . . . . . . . . . . . . . . . . . . . 109 Impact . | . . . . . . . . . . . . . . . . . . . . . . Slashing . | . . . . . . . . . . . . . . . . . . . . . . Piercing . | . . . . . . . . . . . . . . . . . . . . . . Highest Corruption 23 | . . . . . . . 1 4 9 23 . . 1 1 1 1 3 3 7 7 15 Average Corruption 4 | . . . . . . . 1 1 7 9 . . 1 1 1 1 2 3 4 7 8 Corruption Purged . | . . . . . . . . . . . . . . . . . . . . . . Corruption Blocked . | . . . . . . . . . . . . . . . . . . . . . . Effects 268 | . . . . . . . 1 9 82 22 . . 7 8 . 9 19 17 15 40 39 Message Errors 72 | . . . . . . . 1 1 22 7 . . 4 3 . 1 1 5 2 12 13 Matter Fused 64 | . . . . . . . . 2 22 6 . . . 1 . 1 4 4 1 15 8 Heat Flow Errors 25 | . . . . . . . . . 6 3 . . . 1 . 2 2 2 3 3 3 Energy Discharges 32 | . . . . . . . . 1 10 1 . . 1 . . 2 3 2 4 4 4 Parts Rejected 1 | . . . . . . . . . . . . . . . . . . . . . 1 Parts Fused 7 | . . . . . . . . 2 . . . . . . . . 1 1 . 1 2 Data Loss (minor) 29 | . . . . . . . . 1 9 1 . . 2 . . 2 4 1 4 2 3 Data Loss (major) 17 | . . . . . . . . . 8 3 . . . 1 . 1 3 . . . 1 Misfires 7 | . . . . . . . . 1 2 . . . . . . . 1 . 1 . 2 Alerts 6 | . . . . . . . . . 1 . . . . 2 . . . 2 . 1 . Weapon Failures 8 | . . . . . . . . 1 2 1 . . . . . . . . . 2 2 Overload Shots . | . . . . . . . . . . . . . . . . . . . . . . Overflow Damage 391 | . . . . . . 7 . . 23 . 11 . . . . 20 29 . 155 . 146 Projectiles 247 | . . . . . . . . . 23 . . . . . . 20 28 . 155 . 21 Explosions 143 | . . . . . . 7 . . . . 11 . . . . . . . . . 125 Melee 1 | . . . . . . . . . . . . . . . . . 1 . . . . Knockbacks 1 | . . . . . . . . . 1 . . . . . . . . . . . . Impact 1 | . . . . . . . . . 1 . . . . . . . . . . . . Kinetic . | . . . . . . . . . . . . . . . . . . . . . . Secondary . | . . . . . . . . . . . . . . . . . . . . . . Self-Inflicted Damage 30 | . . . . . . 30 . . . . . . . . . . . . . . . Shots 1 | . . . . . . 1 . . . . . . . . . . . . . . . Rammed 12 | . 2 1 . . 2 . . . 1 3 1 . . . . . 1 . . . 1 Targets Rammed 13 | . 2 1 . . 2 . . . 1 3 1 . . . . . 2 . . . 1 Kicked . | . . . . . . . . . . . . . . . . . . . . . . Crushed 1 | . . . . . . . . . . . . . . . . . 1 . . . . Highest Temperature 495 | 36 117 157 . . 495 270 . . 217 417 374 372 99 194 . 340 161 123 326 355 408 Average Temperature 73 | 19 26 45 . . 94 92 . . 64 129 90 187 33 114 . 62 31 27 136 135 94 Received Heat Transfer 2922 | . 114 108 . . 648 252 33 . 69 149 102 45 90 . . 586 45 45 . 174 462 Effects 7 | . . . . . 4 . . . . . . 1 . . . 2 . . . . . Energy Bleed 2 | . . . . . 1 . . . . . . . . . . 1 . . . . . Interference 2 | . . . . . 2 . . . . . . . . . . . . . . . . Matter Decay 2 | . . . . . 1 . . . . . . 1 . . . . . . . . . Damage (minor) 1 | . . . . . . . . . . . . . . . . 1 . . . . . Siege Activations 7 | . . . . . . . . . . . . . . . . 1 . . 4 2 . Total Turns 106 | . . . . . . . . . . . . . . . . 30 . . 60 16 . Longest Duration 31 | . . . . . . . . . . . . . . . . 30 . . 31 15 . Martial Activations . | . . . . . . . . . . . . . . . . . . . . . . Shielding Activations . | . . . . . . . . . . . . . . . . . . . . . . Robots Disrupted . | . . . . . . . . . . . . . . . . . . . . . . Combat Hostiles . | . . . . . . . . . . . . . . . . . . . . . . Robots Corrupted . | . . . . . . . . . . . . . . . . . . . . . . Combat Hostiles . | . . . . . . . . . . . . . . . . . . . . . . Parts Fried . | . . . . . . . . . . . . . . . . . . . . . . Impact Corruptions 1 | . . . . . . . . . . . . . . . . . 1 . . . . Robots Melted 11 | . . . . . 1 . . 1 . . . . . 2 . 1 1 3 1 . 1 Combat Hostiles 11 | . . . . . 1 . . 1 . . . . . 2 . 1 1 3 1 . 1 Parts Melted 64 | . 1 2 . . 6 2 1 . 4 2 2 . 7 4 . 3 6 7 9 1 7 Heat Transferred 24857 | 74 1739 703 . . 1924 1184 703 289 1147 362 1480 172 2220 3293 . 2442 1517 925 1997 749 1937 Parts Sabotaged . | . . . . . . . . . . . . . . . . . . . . . . Parts Stolen . | . . . . . . . . . . . . . . . . . . . . . . Parts Stripped . | . . . . . . . . . . . . . . . . . . . . . . Power Chain Reactions . | . . . . . . . . . . . . . . . . . . . . . . Alert | -11 -10 -10 -10 -9 -8 -8 -7 -7 -7 -7 -6 -6 -5 -5 -5 -5 -5 -5 -4 -4 -4 ------- Run | Yrd Mat Min Exi Min Mat Gar Fac Gar Fac Gar Fac Gar Fac Was Fac Gar Fac Gar Fac Gar Fac Maximum Alert Level 4 | . . . . . . 2 1 1 . 1 . . . . . 4 2 3 2 1 1 Low Security (%) 78 | 100 100 100 . 100 100 43 79 95 100 44 100 100 100 100 100 7 . . 15 82 80 Level 1 11 | . . . . . . 41 20 4 . 55 . . . . . 21 . 24 71 17 19 Level 2 6 | . . . . . . 14 . . . . . . . . . 2 100 30 13 . . Level 3 3 | . . . . . . . . . . . . . . . . 42 . 45 . . . Level 4 . | . . . . . . . . . . . . . . . . 24 . . . . . Level 5 . | . . . . . . . . . . . . . . . . . . . . . . High Security . | . . . . . . . . . . . . . . . . . . . . . . Max Security . | . . . . . . . . . . . . . . . . . . . . . . Peak Influence 1120 | 5 116 60 . . 125 540 283 284 154 366 191 196 102 2 76 1120 588 919 482 208 270 Initial 588 | . . . . . . 51 283 16 149 89 191 36 102 . . 39 588 304 482 133 32 Average 130 | 1 19 7 . . 27 237 132 109 28 234 51 64 19 . 25 754 487 621 268 103 92 Influence Increases 7646 | 5 497 155 . . 432 519 119 268 443 357 386 210 378 4 86 1451 309 685 364 227 751 Destroy 0b10 Robot/C 3660 | . 300 120 . . 260 240 80 20 260 220 220 20 180 . 20 740 160 260 220 80 260 Destroy 0b10 Robot/NC 205 | 5 50 15 . . 15 . 5 . 20 . 20 . 10 . 10 . 5 . 5 . 45 Destroy Leader 700 | . 78 20 . . 76 10 32 . 72 40 50 . 70 . 2 40 50 50 50 . 60 Allied During Kill 776 | . . . . . . . . . 18 28 . 5 9 . 32 425 33 199 17 10 . Successful Hack 203 | . 35 . . . 18 . . 28 9 14 22 . 26 . . . . 7 4 . 40 Select Force Hacks 60 | . . . . . 30 . . . . . 30 . . . . . . . . . . Disable Machine 405 | . . . . . 15 30 . . 30 . . 15 45 . . 15 . 15 30 15 195 Anti-Garrison Action 750 | . . . . . . 50 . 200 . 50 . 150 . . . 100 . 100 . 100 . Destroy Structure 572 | . 4 . . . 3 54 2 20 34 5 29 20 38 4 22 56 46 39 38 22 136 Lose Combat Pursuer 315 | . 30 . . . 15 135 . . . . 15 . . . . 75 15 15 . . 15 Influence Decreases 7500 | 5 497 155 . . 353 58 635 8 599 119 700 66 574 4 30 387 994 201 1093 355 667 Entered New Map 1956 | . . . . . . 28 257 8 135 39 175 16 94 . . 17 532 131 437 57 30 Time Decay 3678 | 5 378 155 . . 283 . 378 . 414 . 478 . 360 4 30 . 392 . 506 . 295 Lost Part 575 | . . . . . 70 30 . . 20 . 20 10 25 . . 50 10 10 30 20 280 Lost Ally 1172 | . . . . . . . . . 30 80 27 40 95 . . 320 60 60 120 278 62 Purge Threat 119 | . 119 . . . . . . . . . . . . . . . . . . . . Squads Dispatched 52 | . 3 . . . 12 . 1 . 10 . 5 . 3 . . . 5 . 6 . 7 Investigation 7 | . . . . . 2 . . . . . 1 . . . . . 1 . 2 . 1 Extermination 20 | . . . . . . . 1 . 6 . 3 . 3 . . . 1 . 4 . 2 Reinforcement 10 | . 3 . . . 2 . . . 2 . 1 . . . . . 1 . . . 1 Assault 2 | . . . . . . . . . . . . . . . . . 2 . . . . Garrison 13 | . . . . . 8 . . . 2 . . . . . . . . . . . 3 Intercept . | . . . . . . . . . . . . . . . . . . . . . . Searches Triggered . | . . . . . . . . . . . . . . . . . . . . . . Construction Impeded 3 | . . . . . . . . . 1 . 1 . . . . . . . . . 1 Haulers Reinforced 1 | . . . . . . . . . . . . . . . . . 1 . . . . Active Scanning Responses . | . . . . . . . . . . . . . . . . . . . . . . Cargo Convoy Interrupts . | . . . . . . . . . . . . . . . . . . . . . . Alert ID Control Effect 26 | . . . . . . . . . . . 5 2 2 . . . 7 . 2 3 5 Stealth | -11 -10 -10 -10 -9 -8 -8 -7 -7 -7 -7 -6 -6 -5 -5 -5 -5 -5 -5 -4 -4 -4 --------- Run | Yrd Mat Min Exi Min Mat Gar Fac Gar Fac Gar Fac Gar Fac Was Fac Gar Fac Gar Fac Gar Fac Distress Signals 20 | . 2 . . . 3 . 2 . 2 . 2 . 1 . 1 . . . 2 . 5 Communications Jammed . | . . . . . . . . . . . . . . . . . . . . . . Distress Signals . | . . . . . . . . . . . . . . . . . . . . . . Times Spotted 305 | . 28 6 . . 25 12 8 1 25 17 22 5 22 2 1 33 13 19 20 16 30 Peak Tracking Total 18 | . 4 3 . . 5 6 3 1 5 7 5 2 5 1 2 18 4 6 3 3 8 Tactical Retreats 12 | . 2 . . . 1 3 . . . . 1 . . . . 2 1 1 . . 1 Traps | -11 -10 -10 -10 -9 -8 -8 -7 -7 -7 -7 -6 -6 -5 -5 -5 -5 -5 -5 -4 -4 -4 ------- Run | Yrd Mat Min Exi Min Mat Gar Fac Gar Fac Gar Fac Gar Fac Was Fac Gar Fac Gar Fac Gar Fac Traps Triggered 21 | . . . . . . 5 1 2 2 . . 5 2 . . . 2 1 . . 1 Indirectly . | . . . . . . . . . . . . . . . . . . . . . . Trap Hack Attempts . | . . . . . . . . . . . . . . . . . . . . . . Triggered . | . . . . . . . . . . . . . . . . . . . . . . Disarmed . | . . . . . . . . . . . . . . . . . . . . . . Reprogrammed . | . . . . . . . . . . . . . . . . . . . . . . Reused . | . . . . . . . . . . . . . . . . . . . . . . Traps Extracted . | . . . . . . . . . . . . . . . . . . . . . . Installed . | . . . . . . . . . . . . . . . . . . . . . . Triggered . | . . . . . . . . . . . . . . . . . . . . . . Machines | -11 -10 -10 -10 -9 -8 -8 -7 -7 -7 -7 -6 -6 -5 -5 -5 -5 -5 -5 -4 -4 -4 ---------- Run | Yrd Mat Min Exi Min Mat Gar Fac Gar Fac Gar Fac Gar Fac Was Fac Gar Fac Gar Fac Gar Fac Machines Disabled 38 | . . . . . 1 3 . 2 2 1 . 2 3 . . 3 . 3 2 3 13 Max in Single Turn 5 | . . . . . 1 1 . 1 1 1 . 1 1 . . 1 . 1 1 1 5 Garrison Access 1 | . . . . . . . . . . . . . 1 . . . . . . . . Garrison Relay 11 | . . . . . . 1 . 2 . 1 . 1 . . . 2 . 2 . 2 . Machines Repaired . | . . . . . . . . . . . . . . . . . . . . . . Machines Dismantled . | . . . . . . . . . . . . . . . . . . . . . . Machines Sabotaged . | . . . . . . . . . . . . . . . . . . . . . . Overloaded Fab Kills . | . . . . . . . . . . . . . . . . . . . . . . Hacking | -11 -10 -10 -10 -9 -8 -8 -7 -7 -7 -7 -6 -6 -5 -5 -5 -5 -5 -5 -4 -4 -4 --------- Run | Yrd Mat Min Exi Min Mat Gar Fac Gar Fac Gar Fac Gar Fac Was Fac Gar Fac Gar Fac Gar Fac Machines Accessed 49 | . 6 1 2 . 5 . 2 3 7 1 4 . 5 . 1 . 3 2 3 1 3 Terminals 29 | . 5 . . . 4 . 1 3 4 1 3 . 2 . . . 1 2 . 1 2 Fabricators 3 | . . . . . . . . . . . . . . . . . 1 . 1 . 1 Repair Stations 3 | . 1 . . . . . . . 1 . . . . . . . . . 1 . . Recycling Units . | . . . . . . . . . . . . . . . . . . . . . . Scanalyzers 3 | . . . . . . . . . 1 . . . 2 . . . . . . . . Garrison Access 8 | . . . . . 1 . 1 . 1 . 1 . 1 . 1 . 1 . 1 . . Total Hacks 110 | . 22 1 2 . 12 . 3 4 15 1 9 . 13 . 2 . 5 5 8 2 6 Successful 62 | . 13 1 2 . 9 . 1 2 4 1 6 . 8 . 2 . 3 1 6 . 3 Failed 48 | . 9 . . . 3 . 2 2 11 . 3 . 5 . . . 2 4 2 2 3 Catastrophic 8 | . . . . . . . . . 2 . . . 1 . . . 1 2 . 1 1 Database Lockouts . | . . . . . . . . . . . . . . . . . . . . . . Manual 40 | . 7 . 1 . 8 . 2 . 9 . 3 . 4 . . . 1 . 2 . 3 Terminals 69 | . 19 . . . 9 . 1 4 10 1 7 . 6 . . . 1 5 . 2 4 Fabricators 5 | . . . . . . . . . . . . . . . . . 2 . 1 . 2 Repair Stations 8 | . 3 . . . . . . . 1 . . . . . . . . . 4 . . Recycling Units . | . . . . . . . . . . . . . . . . . . . . . . Scanalyzers 7 | . . . . . . . . . 2 . . . 5 . . . . . . . . Garrison Access 18 | . . . . . 3 . 2 . 2 . 2 . 2 . 2 . 2 . 3 . . Terminal Hacks 23 | . 9 1 2 . 2 . . 2 2 1 2 . . . . . . 1 . . 1 Record 1 | . . . 1 . . . . . . . . . . . . . . . . . . Part Schematic 1 | . 1 . . . . . . . . . . . . . . . . . . . . Prototype ID Bank 4 | . 3 . . . 1 . . . . . . . . . . . . . . . . Open Door 2 | . . 1 . . . . . . . . . . . . . . . 1 . . . Emergency Access Points 2 | . . . . . . . . 1 . 1 . . . . . . . . . . . Terminal Index 1 | . . . . . . . . . . . 1 . . . . . . . . . . Alert Level 1 | . 1 . . . . . . . . . . . . . . . . . . . . Unreport Threat 1 | . 1 . . . . . . . . . . . . . . . . . . . . Locate Traps 6 | . 2 . . . 1 . . . 1 . 1 . . . . . . . . . 1 Hauler Manifests 2 | . 1 . . . . . . . 1 . . . . . . . . . . . . Garrison Registry 1 | . . . . . . . . 1 . . . . . . . . . . . . . Proto ID Catalog 1 | . . . 1 . . . . . . . . . . . . . . . . . . Fabricator Hacks 2 | . . . . . . . . . . . . . . . . . 1 . 1 . . Network Status 2 | . . . . . . . . . . . . . . . . . 1 . 1 . . Repair Station Hacks 4 | . 2 . . . . . . . . . . . . . . . . . 2 . . Scan Component 2 | . 1 . . . . . . . . . . . . . . . . . 1 . . Repair 2 | . 1 . . . . . . . . . . . . . . . . . 1 . . Recycling Unit Hacks . | . . . . . . . . . . . . . . . . . . . . . . Scanalyzer 4 | . . . . . . . . . . . . . 4 . . . . . . . . Retrieve Study 4 | . . . . . . . . . . . . . 4 . . . . . . . . Garrison Access Hacks 12 | . . . . . 1 . 1 . 1 . 1 . 2 . 2 . 2 . 2 . . Unlock Access 7 | . . . . . 1 . 1 . 1 . 1 . . . 1 . 1 . 1 . . Seal Access 1 | . . . . . . . . . . . . . 1 . . . . . . . . Coupler Status 4 | . . . . . . . . . . . . . 1 . 1 . 1 . 1 . . Unauthorized Hacks 17 | . 2 . . . 6 . . . 1 . 3 . 2 . . . . . 1 . 2 Terminals 13 | . 2 . . . 5 . . . . . 2 . 2 . . . . . . . 2 Botnet 10 | . 2 . . . 2 . . . . . 2 . 2 . . . . . . . 2 Skim 3 | . . . . . 3 . . . . . . . . . . . . . . . . Fabricators . | . . . . . . . . . . . . . . . . . . . . . . Repair Stations 2 | . . . . . . . . . 1 . . . . . . . . . 1 . . Mechanics 2 | . . . . . . . . . 1 . . . . . . . . . 1 . . Recycling Units . | . . . . . . . . . . . . . . . . . . . . . . Scanalyzers . | . . . . . . . . . . . . . . . . . . . . . . Garrison Access 2 | . . . . . 1 . . . . . 1 . . . . . . . . . . Eject 2 | . . . . . 1 . . . . . 1 . . . . . . . . . . Data Cores Recovered 1 | . . . . . . . . . 1 . . . . . . . . . . . . Used . | . . . . . . . . . . . . . . . . . . . . . . Hacking Detections 41 | . 6 . . . 4 . 2 2 7 . 3 . 5 . . . 3 2 3 1 3 Full Trace Events 1 | . . . . . . . . . . . . . . . . . . . 1 . . Feedback Events . | . . . . . . . . . . . . . . . . . . . . . . Feedback Blocked . | . . . . . . . . . . . . . . . . . . . . . . Robot Schematics Acquired . | . . . . . . . . . . . . . . . . . . . . . . Robots Built . | . . . . . . . . . . . . . . . . . . . . . . Authchips . | . . . . . . . . . . . . . . . . . . . . . . Time . | . . . . . . . . . . . . . . . . . . . . . . Total Robot Build Rating . | . . . . . . . . . . . . . . . . . . . . . . Part Schematics Acquired 1 | . 1 . . . . . . . . . . . . . . . . . . . . Parts Built . | . . . . . . . . . . . . . . . . . . . . . . Authchips . | . . . . . . . . . . . . . . . . . . . . . . Time . | . . . . . . . . . . . . . . . . . . . . . . Total Part Build Rating . | . . . . . . . . . . . . . . . . . . . . . . Part Studies Acquired 4 | . . . . . . . . . . . . . 4 . . . . . . . . Parts Repaired 1 | . 1 . . . . . . . . . . . . . . . . . . . . Time 82 | . 26 . . . . . . . . . . . . . . . . . 56 . . Parts Recycled . | . . . . . . . . . . . . . . . . . . . . . . Recycled Matter . | . . . . . . . . . . . . . . . . . . . . . . Retrieved Matter . | . . . . . . . . . . . . . . . . . . . . . . Retrieved Components . | . . . . . . . . . . . . . . . . . . . . . . Parts Scanalyzed . | . . . . . . . . . . . . . . . . . . . . . . Part Schematics Acquired . | . . . . . . . . . . . . . . . . . . . . . . Parts Damaged . | . . . . . . . . . . . . . . . . . . . . . . Bothacking | -11 -10 -10 -10 -9 -8 -8 -7 -7 -7 -7 -6 -6 -5 -5 -5 -5 -5 -5 -4 -4 -4 ------------ Run | Yrd Mat Min Exi Min Mat Gar Fac Gar Fac Gar Fac Gar Fac Was Fac Gar Fac Gar Fac Gar Fac Used RIF Installer 9 | . . . . . . 2 . 1 . 1 . 1 . . . 2 . 1 . 1 . Coupler Efficiency 2 | . . . . . . 1 . . . . . 1 . . . . . . . . . Hotswap 1 | . . . . . . . . 1 . . . . . . . . . . . . . Code Merge 1 | . . . . . . . . . . . . . . . . 1 . . . . . Command Fork 1 | . . . . . . . . . . . . . . . . . . 1 . . . Alert ID Control 1 | . . . . . . . . . . 1 . . . . . . . . . . . Autooverride 1 | . . . . . . . . . . . . . . . . 1 . . . . . Crosswire 1 | . . . . . . . . . . . . . . . . . . . . 1 . Robots Hacked 60 | . . . . . . . 1 . 4 7 6 5 5 6 . . . 6 1 13 6 Non-combat 8 | . . . . . . . 1 . 2 . 2 . 2 . . . . . . . 1 Combat 52 | . . . . . . . . . 2 7 4 5 3 6 . . . 6 1 13 5 Autooverrided 5 | . . . . . . . . . . . . . . . . . . . . 4 1 Robot Hacks Applied 56 | . . . . . . . 1 . 4 8 6 5 5 6 . . . 6 1 9 5 parse_system 2 | . . . . . . . . . 1 1 . . . . . . . . . . . find_chute 4 | . . . . . . . 1 . . . 2 . 1 . . . . . . . . block_reporting 2 | . . . . . . . . . . . . . 1 . . . . . . . 1 ignore_targets 6 | . . . . . . . . . . . . . . 6 . . . . . . . find_garrison 1 | . . . . . . . . . . . 1 . . . . . . . . . . amplify_resonance 3 | . . . . . . . . . . . . . 1 . . . . 1 . . 1 overwrite_iff 9 | . . . . . . . . . . 2 1 . 2 . . . . . . 2 2 formatsys_low 1 | . . . . . . . . . 1 . . . . . . . . . . . . formatsys_high 28 | . . . . . . . . . 2 5 2 5 . . . . . 5 1 7 1 Relay Couplers Released 48 | . . . . . 4 4 . 9 . 3 3 3 . . . 7 . 9 . 6 . Ejected 7 | . . . . . 4 . . . . . 3 . . . . . . . . . . Machine Destruction 38 | . . . . . . 4 . 6 . 3 . 3 . . . 7 . 9 . 6 . Programmers 3 | . . . . . . . . 3 . . . . . . . . . . . . . Attached 8 | . . . . . . . 1 1 1 1 1 1 . . . 1 . 1 . . . Crosswired 3 | . . . . . . . . . . . . . . . . . . . . 3 . Merged Code Value 65 | . . . . . . . . . . . . . . . . 21 . 20 . 24 . Fabnet Peak Effective % . | . . . . . . . . . . . . . . . . . . . . . . Robots Rewired 17 | . . . . . . . . . . . . . . . . 7 . 4 . 6 . Allies Hacked 3 | . . . . . . . . . . 1 . . 2 . . . . . . . . Hacks Repelled . | . . . . . . . . . . . . . . . . . . . . . . Allies | -11 -10 -10 -10 -9 -8 -8 -7 -7 -7 -7 -6 -6 -5 -5 -5 -5 -5 -5 -4 -4 -4 -------- Run | Yrd Mat Min Exi Min Mat Gar Fac Gar Fac Gar Fac Gar Fac Was Fac Gar Fac Gar Fac Gar Fac Total Allies 80 | . . 2 . . . . . . 3 6 3 5 2 18 . 7 . 9 1 20 4 Largest Group 18 | . . 2 2 . . . . . 3 4 2 5 3 18 18 16 4 8 5 5 1 Highest-Rated Group 656 | . . 47 47 . . . . . 62 80 64 151 90 656 656 606 196 357 202 184 49 Highest-Rated Ally 58 | . . 31 31 . . . . . 32 32 32 32 32 50 50 50 49 51 49 58 49 Total Orders 58 | . . . . . . . . . 12 2 2 15 . . . 2 . 6 2 15 2 STAY 26 | . . . . . . . . . 2 1 1 8 . . . 1 . 3 1 8 1 FOLLOW 26 | . . . . . . . . . 4 1 1 7 . . . 1 . 3 1 7 1 AID 6 | . . . . . . . . . 6 . . . . . . . . . . . . Ally Attacks 423 | . . . . . . . . . 13 40 28 33 24 . 20 114 22 30 21 64 14 Total Damage 11264 | . . . . . . . . . 218 593 591 1043 422 . 431 3370 843 992 357 1963 441 Kills 73 | . . . . . . . . . 2 7 5 2 2 . 3 26 7 7 4 3 5 Allies Corrupted 4 | . . . . . . . . . . 1 . . 2 . . . . 1 . . . Allies Melted 3 | . . . . . . . . . . . . . . . . . . . . 2 1 Intel | -11 -10 -10 -10 -9 -8 -8 -7 -7 -7 -7 -6 -6 -5 -5 -5 -5 -5 -5 -4 -4 -4 ------- Run | Yrd Mat Min Exi Min Mat Gar Fac Gar Fac Gar Fac Gar Fac Was Fac Gar Fac Gar Fac Gar Fac Active Infowar (turns) 3808 | 11 2191 1069 537 . . . . . . . . . . . . . . . . . . Seismic 3808 | 11 2191 1069 537 . . . . . . . . . . . . . . . . . . Robot Analysis Total . | . . . . . . . . . . . . . . . . . . . . . . Derelict Logs Recovered 1 | . . 1 . . . . . . . . . . . . . . . . . . . Drone Launches . | . . . . . . . . . . . . . . . . . . . . . . Drone Recoveries . | . . . . . . . . . . . . . . . . . . . . . . Exploration | -11 -10 -10 -10 -9 -8 -8 -7 -7 -7 -7 -6 -6 -5 -5 -5 -5 -5 -5 -4 -4 -4 ------------- Run | Yrd Mat Min Exi Min Mat Gar Fac Gar Fac Gar Fac Gar Fac Was Fac Gar Fac Gar Fac Gar Fac Turns Passed 25530 | 28 2191 1069 537 41 2504 835 899 981 3126 635 1560 1533 1929 972 102 767 938 1000 1368 1198 1317 Spaces Moved 9598 | 7 717 410 224 17 720 249 316 378 1192 216 491 478 830 470 57 286 464 496 687 508 385 Core 7 | . . . . . . . . . . . . . . . . . . . . . 7 Treads 9577 | 7 717 410 224 17 720 249 316 378 1192 216 491 478 830 470 57 286 464 496 687 508 364 Legs 14 | . . . . . . . . . . . . . . . . . . . . . 14 Wheels . | . . . . . . . . . . . . . . . . . . . . . . Hover . | . . . . . . . . . . . . . . . . . . . . . . Flight . | . . . . . . . . . . . . . . . . . . . . . . Fastest Speed 160 | 160 160 240 240 240 160 240 240 240 240 240 240 245 165 160 160 160 160 163 163 163 163 Average Speed 209 | 160 230 240 240 240 226 240 240 240 240 240 241 245 189 160 160 160 161 163 163 163 225 Slowest Speed 1850 | 160 240 240 240 240 240 240 240 243 240 320 245 247 248 165 160 160 163 163 245 163 1850 Overloaded Moves . | . . . . . . . . . . . . . . . . . . . . . . Propulsion Burnouts . | . . . . . . . . . . . . . . . . . . . . . . Robots Hopped . | . . . . . . . . . . . . . . . . . . . . . . Potential Cave-ins 1 | . . . . . . . . . . . . . . . . . . 1 . . . Cave-ins Triggered 1 | . . . . . . . . . 1 . . . . . . . . . . . . Exploration Rate (%) 38 | 2 98 90 62 13 46 39 13 65 30 40 17 31 27 86 3 43 13 46 18 43 11 Regions Visited 21 Branch Regions 3 Pre-discovered Areas 2 | . . . 1 1 . . . . . . . . . . . . . . . . . Known Exits Taken 7 | . . . . . 1 . 1 . 1 . 1 . . . 1 . 1 . 1 . . Unknown Exits Taken 5 | 1 1 1 1 1 . . . . . . . . . . . . . . . . . Scrap Searched 2 | . . 1 . 1 . . . . . . . . . . . . . . . . . Spaces Dug 26 | . 1 . . . . . . . 4 . 3 . 4 . . 1 1 7 3 . 2 Terrain Destroyed 220 | . 1 . . . 3 16 . . 35 . 28 . 19 3 . 2 19 7 17 1 69 Melee 2 | . . . . . . . . . 1 . . . . . . 1 . . . . . Projectile 96 | . 1 . . . 3 1 . . 13 . 9 . 19 3 . 1 8 . 17 1 20 AOE 122 | . . . . . . 15 . . 21 . 19 . . . . . 11 7 . . 49 Terrain Rammed . | . . . . . . . . . . . . . . . . . . . . . . Walls Destroyed . | . . . . . . . . . . . . . . . . . . . . . . Machines Disabled . | . . . . . . . . . . . . . . . . . . . . . . Actions | -11 -10 -10 -10 -9 -8 -8 -7 -7 -7 -7 -6 -6 -5 -5 -5 -5 -5 -5 -4 -4 -4 --------- Run | Yrd Mat Min Exi Min Mat Gar Fac Gar Fac Gar Fac Gar Fac Was Fac Gar Fac Gar Fac Gar Fac Total 13860 | 16 1136 444 224 19 1473 430 436 432 1389 303 805 820 1110 594 67 508 603 634 879 841 697 Wait 2702 | . 319 6 . . 597 108 65 . 91 38 246 301 174 46 10 48 104 57 125 169 198 Move 9581 | 6 716 409 223 16 719 248 316 377 1191 215 490 477 830 469 57 285 464 495 686 507 385 Hop . | . . . . . . . . . . . . . . . . . . . . . . Pick Up 167 | . 22 . 1 . 29 12 12 11 7 3 7 6 16 6 . 4 1 6 7 10 7 Fast Attach 51 | 1 1 . . . 5 1 4 2 5 2 1 . 4 2 . 3 1 2 10 3 4 Attach 68 | . 1 1 . . 12 7 2 5 3 1 5 2 7 . . 4 . . 4 2 12 Detach 3 | . . . . . . . . . 1 . . . . . . 1 . . 1 . . Swap 170 | 2 6 2 . 1 13 5 7 3 27 11 13 2 14 4 . 4 7 16 5 12 16 Drop 169 | 3 9 . . 2 27 8 16 15 14 3 3 4 20 13 . 2 2 5 12 9 2 Fire 673 | 4 60 25 . . 69 37 13 17 47 24 39 16 45 54 . 37 22 33 29 30 72 Melee 5 | . . . . . . . 1 . 1 . . . . . . 3 . . . . . Ram 1 | . . . . . . . . . . . . . . . . . . . . . 1 Kick . | . . . . . . . . . . . . . . . . . . . . . . Crush 12 | . 2 1 . . 2 . . . 1 3 1 . . . . . 2 . . . . Escape Stasis 16 | . . . . . . 4 . 2 . . . 10 . . . . . . . . . Rewire 242 | . . . . . . . . . 1 3 . 2 . . . 117 . 20 . 99 . Trap . | . . . . . . . . . . . . . . . . . . . . . . Miscellaneous . | . . . . . . . . . . . . . . . . . . . . . . Route ------- -11/Scrapyard -10/Materials (discovered 5 exits: [*Mat x3] / *Min / [*Sub]) -10/Mines (discovered 3 exits: [*Mat x2] / *Exi) -10/Exiles -9/Mines -8/Materials (discovered 4 exits: *Fac x2 / [*Sto] / Gar) -8/Garrison -7/Factory -7/Garrison (discovered 3 exits: *Fac x3) -7/Factory (discovered 3 exits: *Fac / [*Low] / Gar) -7/Garrison -6/Factory -6/Garrison -5/Factory -5/Waste -5/Factory -5/Garrison -5/Factory (discovered 2 exits: *Fac / Gar) -5/Garrison -4/Factory (discovered 3 exits: [*Res] / [*Upp] / Gar) -4/Garrison -4/Factory History --------- Turn | Location | Event 15 | -11/Scrapyard | Discovered new exit (range 2) 29 | -11/Scrapyard | Entered Materials 212 | -10/Materials | Discovered new exit (range 9) 311 | -10/Materials | Build established: Mutant 540 | -10/Materials | Discovered new exit (range 9) 1259 | -10/Materials | Discovered new exit (range 16) 1404 | -10/Materials | Discovered new exit (range 15) 1801 | -10/Materials | Discovered new exit (range 14) 2152 | -10/Materials | Repaired Lgt. Treads 2220 | -10/Materials | Entered Mines 2513 | -10/Mines | Met a Derelict who couldn't figure out how to use a Trap Extractor 2580 | -10/Mines | Core integrity fell below 50% 2685 | -10/Mines | Discovered new exit (range 8) 2746 | -10/Mines | Discovered new exit (range 8) 2938 | -10/Mines | Learned Materials stockpile data 3273 | -10/Mines | Deemed a non-threat by the Exiles lab entrance 3275 | -10/Mines | Discovered new exit (range 5) 3289 | -10/Mines | Entered Exiles 3289 | -10/Exiles | Accompanied by 2 allies 3319 | -10/Exiles | Led the pair of lost Derelicts to a safe place 3349 | -10/Exiles | Met 8R-AWN 3383 | -10/Exiles | Met EX-HEX 3465 | -10/Exiles | Met EX-BIN 3489 | -10/Exiles | Aligned with FarCom system 3491 | -10/Exiles | Given EX-Vault access code 3551 | -10/Exiles | Opened EX-Vault 3570 | -10/Exiles | Found Superbattery 3619 | -10/Exiles | Warned to stay clear of 0b10 Research branches 3696 | -10/Exiles | Met EX-DEC 3710 | -10/Exiles | Learned location of Zion (-6) 3799 | -10/Exiles | Discovered new exit (range 12) 3826 | -10/Exiles | Left Exiles lab with Superbattery 3826 | -10/Exiles | Entered Mines 3827 | -9/Mines | Learned location of Storage (-8) 3858 | -9/Mines | Discovered new exit (range 5) 3867 | -9/Mines | Entered Materials 3867 | -8/Materials | Evolved 4 slots: Propulsion x1, Utility x3 3950 | -8/Materials | Garrison activated, responded to threat 4496 | -8/Materials | Build established: Scavenger-Mutant 4668 | -8/Materials | Met 7R-MNS 4805 | -8/Materials | Discovered new exit (range 5) 4927 | -8/Materials | Discovered new exit (range 3) 5389 | -8/Materials | Garrison activated, responded to threat 6023 | -8/Materials | Discovered new exit (range 4) 6243 | -8/Materials | Identified exit to Garrison 6359 | -8/Materials | Core integrity fell below 50% 6371 | -8/Materials | Entered Garrison 6389 | -8/Garrison | Lost 4 parts (2n1u1w) 6399 | -8/Garrison | Installed Relay Interface Framework 6447 | -8/Garrison | Triggered checkpoint 6538 | -8/Garrison | Garrison Relay disabled 6728 | -8/Garrison | Triggered checkpoint 6787 | -8/Garrison | Triggered checkpoint 6841 | -8/Garrison | Build established: Bothacker-Mutant 7138 | -8/Garrison | Expanded RIF knowledge: Coupler Efficiency 7189 | -8/Garrison | Discovered new exit (range 8) 7206 | -8/Garrison | Entered Factory 7206 | -7/Factory | Evolved 2 slots: Utility x2 8105 | -7/Factory | Identified exit to Garrison 8105 | -7/Factory | Entered Garrison 8105 | -7/Garrison | Warlord forces raided the area 8161 | -7/Garrison | Triggered checkpoint 8165 | -7/Garrison | Triggered checkpoint 8167 | -7/Garrison | Triggered checkpoint 8191 | -7/Garrison | Garrison Relay disabled 8197 | -7/Garrison | Triggered checkpoint 8489 | -7/Garrison | Triggered checkpoint 8516 | -7/Garrison | Warlord forces retreated 8638 | -7/Garrison | Garrison Relay disabled 8657 | -7/Garrison | Discovered new exit (range 77) 8657 | -7/Garrison | Discovered new exit (range 7) 8657 | -7/Garrison | Discovered new exit (range 57) 8905 | -7/Garrison | Expanded RIF knowledge: Hotswap 9086 | -7/Garrison | Entered Factory 10310 | -7/Factory | Discovered new exit (range 5) 10580 | -7/Factory | Allied Derelicts emerged from ambush trap array 11214 | -7/Factory | Crushed by falling debris 11471 | -7/Factory | Discovered new exit (range 9) 12081 | -7/Factory | Garrison activated, responded to threat 12138 | -7/Factory | Lost 3 allies 12202 | -7/Factory | Identified exit to Garrison 12212 | -7/Factory | Entered Garrison 12212 | -7/Garrison | Accompanied by 1 ally 12344 | -7/Garrison | Triggered checkpoint 12397 | -7/Garrison | Garrison Relay disabled 12623 | -7/Garrison | System corruption reached 10% 12630 | -7/Garrison | Triggered checkpoint 12636 | -7/Garrison | Lost 4 allies 12776 | -7/Garrison | Discovered new exit (range 10) 12796 | -7/Garrison | Expanded RIF knowledge: Alert ID Control 12847 | -7/Garrison | Entered Factory 12847 | -6/Factory | Accompanied by 2 allies 12847 | -6/Factory | Evolved 2 slots: Propulsion x1, Weapon x1 13154 | -6/Factory | Build established: Botlord-Skirmisher 14067 | -6/Factory | Build established: Bothacker-Skirmisher 14229 | -6/Factory | P-60 Hacker assimilated allied Guardian 5a 14404 | -6/Factory | Identified exit to Garrison 14407 | -6/Factory | Entered Garrison 14487 | -6/Garrison | Triggered checkpoint 14542 | -6/Garrison | Expanded RIF knowledge: Coupler Efficiency 14828 | -6/Garrison | Build established: Botlord-Skirmisher 14840 | -6/Garrison | Triggered checkpoint 15322 | -6/Garrison | Build established: Bothacker-Skirmisher 15493 | -6/Garrison | Spotted B-75 Beast 15507 | -6/Garrison | Destroyed B-75 Beast 15795 | -6/Garrison | Triggered checkpoint 15875 | -6/Garrison | Garrison Relay disabled 15928 | -6/Garrison | Discovered new exit (range 4) 15940 | -6/Garrison | Entered Factory 15940 | -5/Factory | Accompanied by 3 allies 15940 | -5/Factory | Evolved 2 slots: Propulsion x1, Utility x1 16436 | -5/Factory | Lost 3 allies 16961 | -5/Factory | Build established: Bothacker-Tank 17869 | -5/Factory | Sucked down chute 17869 | -5/Factory | Entered Waste 17916 | -5/Waste | Spotted C-40 Crusher 17926 | -5/Waste | Spotted C-40 Crusher 17937 | -5/Waste | Destroyed C-40 Crusher 17945 | -5/Waste | Spotted C-40 Crusher 17981 | -5/Waste | Spotted C-40 Crusher 17985 | -5/Waste | Destroyed C-40 Crusher 18014 | -5/Waste | Spotted C-40 Crusher 18100 | -5/Waste | Spotted C-40 Crusher 18199 | -5/Waste | Destroyed C-40 Crusher 18384 | -5/Waste | Discovered new exit (range 14) 18535 | -5/Waste | Warlord forces began an assault 18841 | -5/Waste | Entered Factory 18841 | -5/Factory | Accompanied by 18 allies 18933 | -5/Factory | Identified exit to Garrison 18943 | -5/Factory | Entered Garrison 18943 | -5/Garrison | Accompanied by 16 allies 18969 | -5/Garrison | Triggered checkpoint 19001 | -5/Garrison | Triggered checkpoint 19003 | -5/Garrison | Garrison Relay disabled 19146 | -5/Garrison | Spotted B-75 Beast 19148 | -5/Garrison | Triggered checkpoint 19170 | -5/Garrison | Allies destroyed B-75 Beast 19191 | -5/Garrison | Triggered checkpoint 19214 | -5/Garrison | Lost 10 allies 19221 | -5/Garrison | Lost 5 parts (2n2u1w) 19281 | -5/Garrison | Expanded RIF knowledge: Code Merge 19415 | -5/Garrison | Triggered checkpoint 19416 | -5/Garrison | Lost 4 allies 19457 | -5/Garrison | Lost 3 allies 19520 | -5/Garrison | Garrison Relay disabled 19586 | -5/Garrison | Build established: Botlord-Tank 19664 | -5/Garrison | Expanded RIF knowledge: Autooverride 19693 | -5/Garrison | Discovered new exit (range 4) 19710 | -5/Garrison | Entered Factory 19710 | -5/Factory | Accompanied by 4 allies 20010 | -5/Factory | First assault squad dispatched 20155 | -5/Factory | P-70 Sage assimilated allied Sentinel 6b 20242 | -5/Factory | Discovered new exit (range 15) 20636 | -5/Factory | Identified exit to Garrison 20648 | -5/Factory | Entered Garrison 20681 | -5/Garrison | Expanded RIF knowledge: Command Fork 20711 | -5/Garrison | Garrison Relay disabled 20722 | -5/Garrison | Triggered checkpoint 21041 | -5/Garrison | Triggered checkpoint 21041 | -5/Garrison | Triggered checkpoint 21182 | -5/Garrison | Spotted B-75 Beast 21192 | -5/Garrison | Destroyed B-75 Beast 21220 | -5/Garrison | Lost 3 allies 21474 | -5/Garrison | Discovered new exit (range 8) 21531 | -5/Garrison | Triggered checkpoint 21568 | -5/Garrison | Garrison Relay disabled 21648 | -5/Garrison | Entered Factory 21648 | -4/Factory | Accompanied by 5 allies 21648 | -4/Factory | Evolved 2 slots: Power x1, Utility x1 22067 | -4/Factory | Lost 4 allies 22118 | -4/Factory | Discovered new exit (range 8) 22693 | -4/Factory | Discovered new exit (range 16) 22994 | -4/Factory | Identified exit to Garrison 23016 | -4/Factory | Entered Garrison 23020 | -4/Garrison | Triggered checkpoint 23116 | -4/Garrison | Garrison Relay disabled 23250 | -4/Garrison | Expanded RIF knowledge: Crosswire 23415 | -4/Garrison | Lost 5 allies 23623 | -4/Garrison | Spotted B-86 Titan 23628 | -4/Garrison | Triggered checkpoint 23634 | -4/Garrison | Triggered checkpoint 23684 | -4/Garrison | Lost 8 allies 23776 | -4/Garrison | Garrison Relay disabled 24014 | -4/Garrison | Allies destroyed B-86 Titan 24132 | -4/Garrison | Triggered checkpoint 24176 | -4/Garrison | Lost 3 allies 24196 | -4/Garrison | Discovered new exit (range 12) 24214 | -4/Garrison | Entered Factory 24214 | -4/Factory | Accompanied by 1 ally 24923 | -4/Factory | Garrison activated, responded to threat 24943 | -4/Factory | Lost 4 parts (1n3u) 24999 | -4/Factory | Lost 7 parts (2p2n2u1w) 25217 | -4/Factory | Lost 4 parts (2p2u) 25315 | -4/Factory | Core integrity fell below 50% 25336 | -4/Factory | Lost 3 parts (1p1n1u) 25396 | -4/Factory | Lost 4 parts (1p3w) 25483 | -4/Factory | System corruption reached 10% 25490 | -4/Factory | Core integrity fell below 20% 25531 | -4/Factory | Destroyed by P-70 Sage with High-powered Shock Rifle Last Messages --------------- 25445_ K-01 Serf collects debris. 25453_ Acquired Plasma Rifle. 25458_ Acquired Autogun. 25463_ Acquired 25 matter. 25469_ System corrupted: Matter fused (-8). 25469_ K-01 Serf collects debris. 25479_ Acquired 72 matter. 25482_ R-10 Processor collects VTOL Module. 25484_ OLBGB:NMOT63GP:TUY9&QE2 25488_ Tesla Rifle destroyed. 25490_ R-10 Processor collects Corrupted Plasma Rifle. 25494_ R-10 Processor collects Unknown Processor. 25501_ System corrupted: FCS attempts to trigger Com. Ion Cannon. 25501_ System corrupted: Com. Ion Cannon misfires. 25503_ Com. Ion Cannon destroyed. 25507_ Flexi-carbon Leg destroyed. 25511_ P-70 Sage destroyed. 25516_ Adv. Cryofiber Web destroyed. 25518_ U-05 Engineer builds a Wall. 25527_ System corrupted: Matter fused (-8). Map ----- +----------------------------------------------------+ | ???????????????????????????????????????????????# | | ??????###########??????????????????????????????# | | ??????#/! !#??????????????????????????????? | | ??????# #??????????????????????????????# | | ??????# "" "" #??????????????????????????????# | | ??????# "" "" #??????????????????????????????# | | ??????# """ """ #????????????###??????############ | | ??????# """ """ #??##########T ###????# | | ??????# """ """ #??# ?????# | | ??????# #??# #????????# "" | | ###########+######## ########## !] "" | | + + # !! "" | | " # #### #### ####"" # ! | | T # #??# #??# #??#"" #+#########+ | | " """ # #??# #??# #??#""" # | | """ # ####/#### #??#""" # | | """ + ## # #??#"" ! + | | # ## !! # #??# # | | """ """ ! # ##= !! # #??# # | | """ """ # ## ! # ##?# ! # | | """ """ # ######### #########/### " | | # %% " | | ? # % " | | ??######### ^!!! % " | | ??????????# !!! p| " | | ??????????; !! *%=@ " | | ??????????# u %################ " " | | ??????????# # ???????????#?? " " | | ??????????# #??????????????? ! " " | | ??????????# %%%% #??????????????? !! ? | | ??????????# %%%% #??????????????? ! %!!??? | | ????????# # %%%% % #????????????????? !! ??? | | ?????????## #?????????????????? !!???? | | ?????????## %#######????????????????????? | | ????????### #= #????????????????????? | | ????????# # % " #????????????????????? | | ????????#"# % %%" = #????????????????????? | | ??????# %# ! #????????????????????? | | ??????# =! " !! #????????????????????? | | ?????# *%!= #% #????????????????????? | | ???? % % +% #????????????????????? | | ????? | %# #????????????????????? | | ?????## # #????????????????????? | | ??????# = %% !* #????????????????????? | | ??????# %! % % # #????????????????????? | | ??????# ! ""%% #% #????????????????????? | | ??????? """%^ % #######????????????????????? | | ??????? ?"""" #??????????????????????????? | | ????????? ?? %#??????????????????????????? | | ?????????????? [ ??????????????????????????? | +----------------------------------------------------+ Best States ------------- Heat Dissipation 113 Energy Generation 37 Energy Capacity 540 Matter Stores 300 Matter Capacity 300 Sight Range 16 Terrain Scan Density 10 Base Temperature (-) 200 Armor Coverage 1200 Resistance: KI 30 Resistance: EM 15 Point Defense Rating 160 Weapon Cycling 15 Phase Shifting 10 Evasion (%) 50 Targeting Accuracy 5 Recoil Reduction 5 Particle Charging 20 Relay Coupler Types 6 Relay Coupler Value 151 Item Schematics ----------------- Huge Storage Unit | -10/Materials | Hacked Robot Schematics ------------------ None Fabricated ------------ Nothing Repaired ---------- Lgt. Treads | 40% | -10/Materials Studied --------- Imp. Deuterium Engine | -5/Factory | Hacked Imp. Remote Datajack | -5/Factory | Hacked Hvy. Rocket Launcher | -5/Factory | Hacked Imp. EM Pulse Cannon | -5/Factory | Hacked Alien Tech Used ----------------- None Achievements -------------- None Challenges ------------ None Game ------ Seed RecyclingImpactDrillbomb Manual? 0 Play Time 06:04:11 Cumulative 310.7 hours Start 2025.12.27 @ 14:06:50 End 2025.12.28 @ 12:12:43 Sessions 9 Manual Loads 0 Difficulty Rogue Special Mode None Game No. 107 Rogue 107 Adventurer 0 Explorer 0 Win Type - Total 14 Types 10/0/1/0/1/0/0/0/0/2 Lore% 58 Gallery% 52 Achievement% 45 Wizard Run 0 Options --------- Layout 0 ASCII 0 Keyboard 0 Movement Numpad Keybinds 0 Fullscreen 1 Font 18/SmallcapsGlow Map View 76x50 Zoom Use 0% Tactical HUD 1 Map Filters NONE Filters NONE Steam 1 RUN: 2be4d095-d9fc-49fb-8847-b3046a3f46ae